bitfinex/quotes_ETHUSD_20240703
["timestamp","ask_amount","ask_price","bid_price","bid_amount"]
[1720034538418,1.44026207,3285.2,3284.9,3.04419]
[1720034538721,1.44026207,3285.2,3284.8,3.04425]
[1720034539083,1.44026207,3285.2,3284.9,0.03280589]
[1720034539809,1.9674995,3285.2,3284.9,0.03280589]
[1720034539976,1.44026207,3285.2,3284.9,0.03280589]
[1720034540178,1.63701202,3285.2,3284.9,0.03280589]
[1720034540429,1.44015447,3285.0,3284.9,0.03280589]
[1720034540729,1.44015447,3285.0,3284.6,3.04451]
[1720034541023,1.96738945,3285.1,3284.6,3.04451]
[1720034541225,0.603359,3285.0,3284.7,0.03174108]
[1720034541434,0.07610942,3285.0,3284.7,0.03174108]
[1720034541729,1.44015447,3285.1,3284.8,3.04427]
[1720034541945,1.44015447,3285.3,3284.8,3.04427]
[1720034542095,1.96736964,3285.3,3284.9,0.03179411]
[1720034542290,1.51626389,3285.4,3284.9,3.07593411]
[1720034542614,1.44015447,3285.5,3285.0,3.04411]
[1720034543153,1.51625568,3285.5,3285.1,0.03177371]
[1720034543323,0.07610121,3285.5,3285.1,0.03177371]
[1720034545290,2.04373994,3285.5,3285.1,0.03177371]
[1720034545491,1.51656456,3285.5,3285.1,0.03177371]
[1720034545691,1.96765563,3285.4,3285.1,0.03177371]
[1720034545918,0.60329734,3285.3,3285.1,0.03177371]
[1720034546121,2.04377541,3285.3,3284.7,3.0444]
[1720034546432,0.52722571,3285.2,3284.6,6.0889]
[1720034546746,4.48422795,3285.3,3284.8,0.03162687]
[1720034546887,4.48422795,3285.3,3284.9,0.03162687]
[1720034546888,2.04367744,3285.2,3284.9,0.03162687]
[1720034547087,0.07610911,3285.2,3284.6,3.04444]
[1720034547293,1.44033862,3285.0,3284.1,7.28]
[1720034547532,6.08864,3284.8,3284.7,0.03059393]
[1720034547842,6.08864,3284.8,3283.2,3.4861]
[1720034547843,3.04475,3284.4,3283.3,3.04569]
[1720034547991,0.45600646,3285.0,3282.9,3.04601]
[1720034547992,3.04521,3283.9,3282.9,3.04601]
[1720034548188,3.12139048,3283.8,3283.4,0.02848738]
[1720034548491,0.07614548,3283.7,3282.6,3.04627]
[1720034548805,1.43975745,3283.4,3282.6,3.04627]
[1720034548992,0.60370779,3283.3,3282.7,0.02708346]
[1720034549193,0.07615139,3283.2,3282.7,0.02708346]
[1720034549555,3.0463,3282.7,3281.6,3.04726]
[1720034549715,3.0463,3282.7,3281.7,0.304726]
[1720034549716,3.04651,3282.5,3281.7,0.304726]
[1720034550029,0.07617454,3282.6,3281.4,3.04744]
[1720034550030,3.04674,3282.2,3281.4,3.04744]
[1720034550236,0.07617759,3282.1,3281.3,0.005]
[1720034550440,6.09494,3281.4,3281.3,0.005]
[1720034551023,9.14241,3281.4,3281.3,0.005]
[1720034551224,9.14241,3281.4,3280.7,0.00639832]
[1720034551225,3.04803,3280.8,3280.7,0.00639832]
[1720034551426,6.09606,3280.8,3280.7,0.00639832]
[1720034551811,0.609606,3280.8,3280.7,0.00639832]
[1720034552037,3.12424497,3280.8,3280.7,0.00639832]
[1720034552241,3.12424497,3280.8,3279.7,3.04905]
[1720034552242,5.3213,3280.7,3278.9,0.35648304]
[1720034552450,5.3213,3280.7,3274.9,1.0]
[1720034552451,1.0,3279.0,3274.9,1.0]
[1720034552741,4.573,3279.3,3275.3,1.26805533]
[1720034552742,9.15861,3275.6,3275.3,1.26805533]
[1720034552940,9.15861,3275.6,3271.7,0.96621829]
[1720034552941,0.07635363,3275.5,3271.7,0.96621829]
[1720034553108,0.07635363,3275.5,3269.7,4.20108955]
[1720034553109,3.04,3273.9,3272.0,1.26909809]
[1720034553314,1.833,3275.3,3270.9,2.22121166]
[1720034553315,3.05653,3271.7,3270.9,2.22121166]
[1720034553495,3.05653,3271.7,3268.7,3.05928]
[1720034553496,3.05707,3271.1,3268.7,3.05928]
[1720034553705,6.11414,3271.1,3271.0,0.33744691]
[1720034553897,6.11414,3271.1,3268.4,3.05957]
[1720034553898,6.11452,3270.9,3270.7,3.03951386]
[1720034554113,0.62028064,3271.5,3270.7,3.03951386]
[1720034554114,3.6713869,3271.6,3270.7,2.40134972]
[1720034554317,2.7257458,3271.5,3270.7,2.40134972]
[1720034554499,0.6147569,3271.6,3270.7,2.40134972]
[1720034554735,2.15164916,3272.9,3270.8,6.741219]
[1720034554898,3.05653,3271.7,3269.7,3.05833]
[1720034555100,1.0,3273.8,3269.4,0.57877594]
[1720034555101,0.25,3271.6,3270.6,3.05753]
[1720034555298,0.61108938,3272.7,3269.4,0.17073707]
[1720034555299,6.1,3271.3,3269.4,0.17073707]
[1720034555538,6.1,3271.3,3269.5,3.05854]
[1720034555539,3.05,3270.5,3269.5,3.05854]
[1720034555747,1.0,3271.4,3269.4,0.17073707]
[1720034555748,0.06316834,3271.2,3269.4,0.17073707]
[1720034555957,3.05766,3270.5,3269.4,0.17073707]
[1720034556097,1.0,3269.5,3269.4,0.17073707]
[1720034556294,0.06316834,3271.2,3269.2,3.57527307]
[1720034556538,0.06316834,3271.2,3270.0,2.92268228]
[1720034556741,0.06316834,3271.2,3269.4,2.60412718]
[1720034557063,0.06316834,3271.2,3271.1,2.956]
[1720034557365,1.0,3274.0,3271.9,3.05626]
[1720034557563,1.0,3274.0,3271.1,0.2956]
[1720034557564,1.21441379,3275.3,3272.9,2.956]
[1720034557717,1.0,3274.6,3272.9,2.956]
[1720034557918,3.0,3275.6,3273.0,3.05527]
[1720034558176,3.0,3275.6,3272.6,4.597]
[1720034558177,3.0532,3275.3,3272.6,4.597]
[1720034558330,3.08956093,3275.5,3273.2,3.05502]
[1720034558517,3.08956093,3275.5,3272.7,3.55]
[1720034558518,0.03653093,3275.5,3273.5,3.05478]
[1720034558724,0.03653093,3275.5,3273.6,0.855478]
[1720034559031,1.0,3276.1,3273.6,0.855478]
[1720034559231,1.223144,3276.8,3273.6,3.60469]
[1720034559232,3.05,3276.2,3273.6,3.60469]
[1720034559446,4.05304,3275.5,3273.7,3.0]
[1720034559644,4.05304,3275.5,3273.1,3.05515]
[1720034559645,4.05337,3275.1,3273.1,3.05515]
[1720034559817,1.0,3274.7,3273.4,3.05488]
[1720034560019,1.0,3275.5,3274.0,2.956]
[1720034560283,1.0,3275.7,3274.1,0.55]
[1720034560625,0.03653093,3276.0,3274.8,3.05359]
[1720034560822,1.0,3276.4,3274.5,3.05389]
[1720034561020,1.0,3276.4,3274.2,3.60416]
[1720034561021,1.0,3276.4,3275.2,3.05322]
[1720034561572,3.05,3276.9,3274.2,0.55]
[1720034561573,1.0,3275.5,3275.0,3.05341]
[1720034561859,1.0,3276.2,3274.8,2.956]
[1720034562082,1.0,3276.2,3274.9,3.05351]
[1720034562233,1.0,3276.2,3275.3,3.05314]
[1720034562434,1.0,3276.2,3275.4,3.05304]
[1720034562669,1.0,3276.2,3275.6,3.05282]
[1720034562978,1.0,3276.2,3275.1,3.0533]
[1720034563146,1.0,3276.2,3275.0,3.05342]
[1720034563479,1.0,3276.2,3275.3,3.05314]
[1720034563646,1.0,3275.9,3275.0,3.05342]
[1720034563988,1.0,3275.9,3274.4,3.05391]
[1720034564149,1.0,3275.9,3274.2,3.506]
[1720034564150,1.0,3276.2,3275.3,3.05311]
[1720034564354,1.0,3275.9,3275.3,3.05311]
[1720034564555,3.05169,3276.9,3275.3,3.05311]
[1720034564556,1.0,3276.2,3275.3,3.05311]
[1720034564762,1.0,3276.5,3276.0,3.05247]
[1720034565138,1.0,3276.5,3276.0,3.05249]
[1720034565682,1.0,3277.6,3276.8,3.05172]
[1720034565885,1.0,3277.6,3275.5,3.05292]
[1720034565886,1.0239563,3278.0,3275.2,2.956]
[1720034566088,1.0239563,3278.0,3277.1,3.0514]
[1720034566238,1.0239563,3278.0,3277.4,3.05117]
[1720034566635,1.0,3277.8,3276.0,2.956]
[1720034566886,0.0239563,3278.0,3275.2,4.05319]
[1720034566887,1.0,3277.5,3276.4,3.0521]
[1720034567049,1.0,3277.3,3276.4,3.0521]
[1720034567252,1.0,3277.3,3276.5,3.05202]
[1720034567443,1.0,3277.3,3276.7,3.05176]
[1720034567638,1.0,3277.3,3276.2,3.0523]
[1720034567900,3.05,3277.5,3274.7,3.05364]
[1720034568036,3.05,3277.5,3275.3,3.05306]
[1720034568037,3.05207,3276.5,3275.3,3.05306]
[1720034568365,3.05207,3276.5,3274.8,0.31816276]
[1720034568366,1.0,3275.6,3274.8,0.31816276]
[1720034568570,1.0,3275.6,3274.0,4.01276794]
[1720034568571,1.0,3275.5,3274.0,0.33856794]
[1720034568740,1.0,3275.5,3274.5,3.05386]
[1720034569083,1.0,3275.1,3274.4,3.05398]
[1720034569590,1.0,3274.9,3274.4,3.05398]
[1720034569796,1.0,3275.2,3274.5,3.05389]
[1720034569937,2.956,3276.6,3273.3,3.05499]
[1720034569938,1.0,3275.7,3274.9,3.05344]
[1720034570142,1.0,3275.9,3275.1,3.05325]
[1720034570341,1.0,3275.9,3275.2,3.05324]
[1720034570573,1.0,3275.7,3274.9,3.05344]
[1720034570800,3.0524,3276.2,3274.7,3.05369]
[1720034570997,1.0,3275.2,3274.8,3.05362]
[1720034571156,1.0,3275.2,3272.6,1.0]
[1720034571157,3.05282,3275.7,3274.2,3.05416]
[1720034571360,3.05282,3275.7,3273.6,3.05472]
[1720034571361,1.0,3275.1,3273.4,3.05489]
[1720034571700,1.0,3275.1,3274.2,3.05416]
[1720034571846,3.05355,3274.9,3273.6,3.05473]
[1720034572044,1.0,3274.2,3273.0,3.05522]
[1720034572246,1.0,3274.2,3272.3,6.01188]
[1720034572247,3.05397,3274.5,3272.3,3.0559]
[1720034572467,3.05455,3273.8,3272.4,0.30559]
[1720034572683,4.05465,3273.7,3272.5,3.05573]
[1720034572945,1.0,3273.1,3272.0,3.05622]
[1720034573280,1.0,3273.1,3270.6,3.05748]
[1720034573281,4.05533,3273.0,3271.4,3.05673]
[1720034573468,1.0,3272.9,3271.3,3.05688]
[1720034573674,1.0,3273.3,3272.3,3.05595]
[1720034573979,3.0553,3273.0,3271.1,3.05707]
[1720034574186,1.0,3274.0,3272.5,3.0557]
[1720034574370,3.05,3274.4,3271.1,3.27427915]
[1720034574687,3.05,3274.4,3272.0,3.05622]
[1720034574688,3.05512,3273.2,3272.0,3.05622]
[1720034574900,3.05466,3273.7,3272.5,3.05574]
[1720034575046,1.0,3275.1,3271.2,0.32742792]
[1720034575047,1.0,3273.3,3271.2,0.32742792]
[1720034575244,1.0,3273.3,3271.9,3.05625]
[1720034575570,6.05417,3274.3,3271.6,3.05658]
[1720034575571,1.0,3272.7,3271.6,3.05659]
[1720034575786,1.0,3272.7,3271.2,0.32742792]
[1720034576091,1.0,3272.7,3270.7,6.81752]
[1720034576282,1.0,3272.7,3272.1,3.05611]
[1720034576484,3.05494,3273.4,3270.0,0.6478111]
[1720034576485,1.0,3272.3,3270.0,0.6478111]
[1720034576786,3.0,3273.3,3269.0,3.7269]
[1720034576787,3.6,3272.2,3269.0,3.7269]
[1720034576940,4.05,3272.2,3270.4,3.05772]
[1720034577141,3.05588,3272.4,3270.5,0.305772]
[1720034577450,3.05588,3272.4,3269.0,3.7269]
[1720034577451,1.0,3270.0,3268.6,0.0075]
[1720034577765,1.0,3270.0,3266.4,3.0]
[1720034577766,3.05715,3271.1,3265.2,0.01444805]
[1720034577767,1.0,3265.3,3265.2,0.01444805]
[1720034578095,1.833,3267.8,3265.2,0.01444805]
[1720034578096,3.0593,3268.8,3265.2,0.01444805]
[1720034578261,3.0593,3268.8,3265.9,3.06192]
[1720034578262,6.12031,3267.7,3265.9,3.06192]
[1720034578463,3.05,3268.2,3265.2,0.01444805]
[1720034578464,3.06064,3267.3,3265.6,3.06217]
[1720034578677,3.06,3267.8,3265.2,0.01444805]
[1720034578881,3.05973,3268.3,3265.7,3.4474]
[1720034579098,0.1376,3269.1,3265.7,3.4474]
[1720034579099,1.0,3267.7,3265.7,3.4474]
[1720034579253,1.0,3267.7,3265.2,4.07696805]
[1720034579254,1.0,3266.9,3265.2,0.01444805]
[1720034579452,3.06136,3266.6,3265.2,0.01444805]
[1720034579652,3.06136,3266.6,3264.4,0.09443661]
[1720034579653,1.0,3265.4,3264.4,0.09443661]
[1720034579967,18.732228,3266.5,3262.9,0.01]
[1720034579968,1.0,3264.3,3262.9,0.01]
[1720034580152,0.55,3264.2,3262.9,0.01]
[1720034580353,0.1376,3264.9,3262.9,0.01]
[1720034580354,3.06372,3264.1,3262.9,0.01]
[1720034580678,3.06397,3263.8,3262.9,0.01]
[1720034580890,3.06336,3264.4,3262.9,0.01]
[1720034581092,3.06348,3264.3,3262.9,0.01]
[1720034581322,1.1376,3264.9,3262.0,0.00328769]
[1720034581323,1.0,3262.1,3262.0,0.00328769]
[1720034581481,16.33695,3260.1,3260.0,3.9648084]
[1720034581680,16.33695,3260.1,3260.0,1.85203139]
[1720034581681,6.68478,3260.1,3260.0,1.85203139]
[1720034581913,1.0,3261.1,3260.0,1.85203139]
[1720034581914,4.06462,3263.1,3260.0,1.48203139]
[1720034582121,1.59731129,3265.0,3260.0,1.48203139]
[1720034582122,1.0,3264.9,3261.7,3.06584]
[1720034582279,3.0632,3264.6,3262.8,3.06477]
[1720034582480,3.0632,3264.6,3260.1,5.66766573]
[1720034582481,3.0,3266.7,3263.6,3.06401]
[1720034582714,3.0,3266.7,3261.5,0.69588173]
[1720034582715,0.3049,3269.9,3261.5,0.69588173]
[1720034582716,1.42858505,3268.3,3266.3,3.081]
[1720034582924,1.50668368,3271.0,3267.3,3.06061]
[1720034582925,3.05846,3269.7,3267.3,3.06061]
[1720034583139,1.43158046,3269.3,3267.4,0.306061]
[1720034583281,1.43158046,3269.7,3267.0,3.06088]
[1720034583514,1.22579,3269.3,3267.2,3.06065]
[1720034583710,1.22579,3269.3,3266.0,3.081]
[1720034583711,1.22579,3269.3,3266.4,3.0614]
[1720034583915,1.43158046,3269.1,3267.5,3.06039]
[1720034584159,2.65801046,3269.7,3266.6,3.06124]
[1720034584358,1.43158046,3269.2,3266.7,3.55]
[1720034584526,1.43158046,3269.2,3268.4,3.05956]
[1720034584727,1.43158046,3269.2,3268.5,3.05947]
[1720034584728,1.43139084,3269.2,3268.5,3.05947]
[1720034585055,1.43139084,3269.3,3268.9,3.05908]
[1720034585226,1.43139084,3270.0,3268.9,3.05908]
[1720034585431,1.0,3271.3,3267.6,6.14126]
[1720034585432,1.43139084,3269.7,3269.3,3.05872]
[1720034585617,7.0565,3271.8,3269.7,3.05832]
[1720034585618,1.43139084,3269.9,3269.7,3.05832]
[1720034585816,1.43211622,3271.4,3268.7,3.05927]
[1720034586182,3.7117,3272.2,3270.0,3.05802]
[1720034586183,1.224818,3272.0,3270.0,3.05802]
[1720034586455,1.224818,3272.0,3268.8,4.164027]
[1720034586456,3.7117,3272.2,3269.5,3.05851]
[1720034586664,1.224649,3272.5,3269.7,3.05836]
[1720034586969,3.0,3273.0,3271.1,3.05707]
[1720034586970,3.0555,3272.8,3271.1,3.05707]
[1720034587118,13.49977,3273.4,3271.1,6.11414]
[1720034587322,4.279456,3273.3,3271.1,6.11414]
[1720034587512,7.4448,3273.4,3271.1,6.11414]
[1720034587713,3.05514,3273.2,3271.1,6.11414]
[1720034587945,3.05539,3272.9,3271.1,6.11414]
[1720034588255,8.669017,3273.4,3270.8,6.11461]
[1720034588256,3.05576,3272.5,3270.8,6.11461]
[1720034588471,3.05576,3272.5,3270.8,3.05726]
[1720034588472,3.0558,3272.5,3270.8,3.05726]
[1720034588625,3.05515,3273.2,3270.8,3.05726]
[1720034588626,3.05632,3272.0,3270.8,3.05726]
[1720034588828,1.0,3272.7,3269.9,3.05816]
[1720034589027,4.05566,3272.7,3270.5,3.05762]
[1720034589258,3.05613,3272.2,3270.9,3.05723]
[1720034589430,3.05489,3273.5,3270.6,3.05753]
[1720034589431,3.05568,3272.6,3270.6,3.05753]
[1720034589762,3.05551,3272.8,3271.1,6.11414]
[1720034589919,3.05525,3273.1,3271.1,6.11414]
[1720034590123,3.05491,3273.5,3271.6,3.05658]
[1720034590124,3.05503,3273.3,3271.6,3.05658]
[1720034590453,3.05494,3273.4,3271.8,3.05642]
[1720034590666,3.05494,3273.4,3271.6,3.05658]
[1720034590954,1.223975,3274.3,3272.4,3.081]
[1720034591135,3.05391,3274.5,3271.7,3.0]
[1720034591343,3.05457,3273.8,3271.8,0.85]
[1720034591663,4.1741384,3274.6,3272.9,3.0553]
[1720034591664,0.1202484,3274.6,3272.9,3.0553]
[1720034591890,0.0950772,3274.6,3272.9,3.0553]
[1720034592032,0.0950772,3274.6,3272.4,3.081]
[1720034592336,3.05438,3274.0,3272.4,3.0558]
[1720034592525,0.0950772,3274.6,3271.9,0.31452928]
[1720034592526,3.05428,3274.1,3271.9,0.31452928]
[1720034592730,3.05428,3274.1,3272.0,0.55]
[1720034592956,3.05428,3274.1,3271.6,3.081]
[1720034592957,0.0950772,3274.6,3273.0,3.05527]
[1720034593173,0.0950772,3274.6,3273.2,3.05509]
[1720034593527,0.0950772,3274.6,3273.7,3.05463]
[1720034593967,0.0950772,3274.6,3273.6,3.05472]
[1720034594350,0.0950772,3274.6,3273.1,3.05519]
[1720034594546,0.0950772,3274.6,3273.4,3.05492]
[1720034594992,0.0950772,3274.6,3273.8,3.05451]
[1720034595588,0.0950772,3274.6,3274.3,3.054]
[1720034596046,0.0950772,3274.6,3274.1,3.05427]
[1720034596750,0.0950772,3274.6,3274.4,3.05398]
[1720034596951,0.0950772,3274.6,3274.5,6.1078]
[1720034597265,0.00489532,3276.2,3275.2,3.05322]
[1720034597562,0.00489532,3276.2,3275.3,3.05314]
[1720034598180,0.00489532,3276.2,3274.1,3.05425]
[1720034598181,0.00489532,3276.2,3275.5,3.05296]
[1720034598398,0.00489532,3276.2,3276.1,6.1048]
[1720034599365,0.00489532,3276.2,3276.1,6.6548]
[1720034599584,0.00489532,3276.2,3276.1,9.7072]
[1720034599785,0.00489532,3276.2,3276.1,3.0524]
[1720034599953,0.00489532,3276.2,3274.2,2.0]
[1720034599954,0.00489532,3276.2,3275.5,3.05295]
[1720034600153,0.00489532,3276.2,3275.7,3.05275]
[1720034600601,0.00489532,3276.2,3275.8,3.05267]
[1720034600910,0.00489532,3276.2,3275.3,3.05314]
[1720034601065,0.00489532,3276.2,3275.6,3.05278]
[1720034601250,5.32e-06,3276.2,3276.1,9.1572]
[1720034601448,5.32e-06,3276.2,3276.1,12.2096]
[1720034601848,5.32e-06,3276.2,3276.1,6.1048]
[1720034602249,5.32e-06,3276.2,3276.1,9.1572]
[1720034602663,5.32e-06,3276.2,3276.1,12.1572]
[1720034602857,5.32e-06,3276.2,3276.1,10.32052]
[1720034603061,5.32e-06,3276.2,3276.1,13.37292]
[1720034603248,5.32e-06,3276.2,3276.1,13.92292]
[1720034603888,5.32e-06,3276.2,3276.1,6.1048]
[1720034604595,5.32e-06,3276.2,3276.1,3.0524]
[1720034604793,5.32e-06,3276.2,3275.5,3.05296]
[1720034605166,5.32e-06,3276.2,3274.3,3.081]
[1720034605167,5.32e-06,3276.2,3275.6,3.05281]
[1720034605368,5.32e-06,3276.2,3274.3,4.081]
[1720034605369,5.32e-06,3276.2,3275.4,3.05306]
[1720034605561,5.32e-06,3276.2,3275.6,3.05286]
[1720034605901,5.32e-06,3276.2,3274.8,3.05354]
[1720034606104,5.32e-06,3276.2,3275.8,3.0526]
[1720034606253,5.32e-06,3276.2,3276.0,3.05246]
[1720034606455,5.32e-06,3276.2,3275.3,3.05315]
[1720034606456,5.32e-06,3276.2,3276.1,6.1048]
[1720034606755,3.05027,3278.4,3276.4,3.211]
[1720034606965,3.05009,3278.6,3277.3,3.05125]
[1720034607259,3.1925556,3278.7,3276.8,3.05167]
[1720034607260,0.1425556,3278.7,3276.8,3.05167]
[1720034607451,3.1925856,3278.7,3277.2,3.0513]
[1720034607683,0.1425556,3278.7,3276.6,0.360195]
[1720034607888,0.1425556,3278.7,3278.5,3.05016]
[1720034608254,0.1425556,3278.7,3278.6,3.05008]
[1720034608463,0.1425556,3278.7,3278.6,6.10016]
[1720034608879,0.1425556,3278.7,3277.4,6.05115]
[1720034609100,0.1425556,3278.7,3278.6,6.10016]
[1720034609464,0.1425556,3278.7,3278.6,9.70024]
[1720034609796,0.1425556,3278.7,3278.6,6.65016]
[1720034610293,0.1425556,3278.7,3278.6,3.05008]
[1720034610588,0.1425556,3278.7,3278.6,3.60008]
[1720034610763,0.1425556,3278.7,3278.6,6.65016]
[1720034610982,0.1425556,3278.7,3278.6,9.70024]
[1720034611465,0.1425556,3278.7,3278.6,6.65016]
[1720034611667,0.1425556,3278.7,3278.6,9.70024]
[1720034611868,7.194,3281.7,3279.7,3.04902]
[1720034611869,10.24126,3281.7,3279.7,3.04902]
[1720034612179,10.24126,3281.7,3278.6,1.520024]
[1720034612180,8.194,3281.7,3278.6,0.55]
[1720034612386,8.194,3281.7,3278.4,3.05019]
[1720034612387,3.04812,3280.7,3278.4,3.05019]
[1720034612717,3.04871,3280.1,3278.7,3.04995]
[1720034612853,3.04888,3279.9,3278.8,3.04988]
[1720034613289,3.0,3281.1,3278.9,3.0498]
[1720034613290,3.04832,3280.5,3278.9,3.0498]
[1720034613562,3.04832,3280.5,3279.2,3.0495]
[1720034613563,3.04851,3280.3,3279.2,3.0495]
[1720034613770,3.04843,3280.4,3279.2,3.0495]
[1720034613978,3.0,3280.8,3278.4,3.05019]
[1720034613979,3.049,3279.8,3278.4,3.05019]
[1720034614268,3.04925,3279.5,3278.3,3.05034]
[1720034614490,3.04925,3279.5,3276.6,3.05191]
[1720034614491,3.0495,3279.3,3277.4,3.05111]
[1720034614803,3.0495,3279.3,3276.0,3.081]
[1720034614804,3.05036,3278.3,3277.2,3.05135]
[1720034614987,3.05019,3278.5,3277.3,3.05126]
[1720034615156,1.0,3279.3,3276.8,3.05172]
[1720034615354,3.04966,3279.1,3276.8,3.05172]
[1720034615579,3.05065,3278.0,3276.8,3.05172]
[1720034615905,3.05039,3278.3,3277.0,3.05154]
[1720034616514,3.05027,3278.4,3277.0,3.05154]
[1720034616806,3.05009,3278.6,3277.6,3.05097]
[1720034616984,3.0499,3278.8,3277.0,0.305154]
[1720034616985,3.0499,3278.8,3277.7,3.0509]
[1720034617704,3.0499,3278.8,3277.6,3.05094]
[1720034617876,3.04964,3279.1,3277.6,3.05094]
[1720034618204,3.0498,3278.9,3277.6,3.05094]
[1720034618360,3.0498,3278.9,3277.8,3.05074]
[1720034618559,3.0498,3278.9,3277.4,3.211]
[1720034618560,3.0498,3278.9,3277.9,3.05071]
[1720034618799,3.04972,3279.0,3278.0,3.05062]
[1720034619097,3.04943,3279.3,3278.2,3.05045]
[1720034619270,7.0933,3279.7,3278.2,3.05045]
[1720034619271,3.04934,3279.4,3278.2,3.05045]
[1720034619605,3.05009,3278.6,3277.4,3.05118]
[1720034619808,3.04991,3278.8,3277.6,3.05092]
[1720034620299,0.52829634,3278.7,3276.2,3.05228]
[1720034620504,3.05038,3278.3,3277.2,3.05137]
[1720034621058,4.48691032,3278.4,3277.2,3.05137]
[1720034621263,1.96497292,3278.3,3277.2,3.05137]
[1720034621586,1.96497292,3278.3,3277.0,3.05155]
[1720034621587,1.43662032,3278.3,3277.0,3.05155]
[1720034621798,5.01533318,3278.3,3277.1,3.05147]
[1720034622011,1.96496444,3278.2,3277.1,3.05147]
[1720034622312,1.96497773,3278.1,3277.1,3.05147]
[1720034622472,1.43662032,3278.1,3277.1,3.05147]
[1720034622676,1.43662032,3278.1,3277.2,3.05138]
[1720034622867,3.0,3279.1,3277.3,3.05128]
[1720034622868,1.43662032,3278.2,3277.3,3.05128]
[1720034623064,1.43662032,3278.3,3277.4,0.55]
[1720034623307,1.43662032,3278.1,3277.6,3.05099]
[1720034623503,0.52833524,3278.2,3277.6,3.05099]
[1720034623504,1.43662032,3278.2,3277.6,3.05099]
[1720034623861,1.4366394,3278.2,3277.6,3.05099]
[1720034624390,4.0,3280.1,3277.6,3.05099]
[1720034624391,1.43660528,3278.0,3277.7,3.05089]
[1720034624612,1.43660528,3278.2,3277.8,3.60081]
[1720034624923,3.0499,3278.8,3277.4,0.55]
[1720034624924,1.96488929,3278.1,3277.4,3.05117]
[1720034625210,1.43660528,3277.8,3277.3,3.05128]
[1720034625421,1.96488929,3277.7,3277.5,3.05107]
[1720034625583,0.52828401,3277.6,3277.3,3.05128]
[1720034625790,1.43660528,3277.8,3277.5,3.05109]
[1720034625998,7.0933,3279.7,3277.5,3.05109]
[1720034625999,1.43660528,3278.1,3277.5,3.211]
[1720034626175,1.96488092,3278.0,3277.9,3.05073]
[1720034626372,0.52827564,3278.0,3277.9,3.05073]
[1720034626571,0.52827564,3278.9,3277.9,3.60073]
[1720034626808,0.52827564,3278.9,3276.9,3.0]
[1720034626809,1.43668721,3278.0,3277.4,3.05115]
[1720034627017,7.0933,3279.7,3277.4,3.05115]
[1720034627018,1.43660278,3277.7,3277.4,3.05115]
[1720034627380,1.96493702,3277.6,3277.4,3.05115]
[1720034627578,3.04966,3279.1,3277.2,3.05136]
[1720034627579,0.52833424,3277.5,3277.2,3.05136]
[1720034627792,3.05025,3278.5,3277.2,3.05136]
[1720034627793,1.96478853,3277.4,3277.3,3.05129]
[1720034628092,1.96470923,3277.4,3277.3,3.05129]
[1720034628282,1.43637499,3277.4,3277.3,3.05129]
[1720034628482,0.52833424,3277.4,3277.3,3.05129]
[1720034628787,0.52833424,3277.4,3277.3,3.60129]
[1720034629537,0.52833424,3278.4,3277.3,3.60129]
[1720034629715,8.14983175,3279.7,3277.3,3.60129]
[1720034629716,0.52833481,3278.3,3277.7,3.05088]
[1720034629881,0.52833481,3278.2,3277.7,3.05088]
[1720034630081,3.04984,3278.9,3277.7,3.05088]
[1720034630082,0.52833481,3278.1,3277.7,3.05088]
[1720034630421,0.52833481,3278.1,3277.6,3.051]
[1720034630422,0.52833481,3278.0,3277.8,3.0508]
[1720034630602,0.52833481,3278.0,3277.6,3.051]
[1720034630801,0.52833481,3277.9,3277.3,3.0512]
[1720034631014,1.43653337,3277.6,3277.5,3.0511]
[1720034631196,0.52833481,3277.6,3277.5,3.0511]
[1720034631592,0.52833481,3277.6,3277.4,3.05111]
[1720034631793,3.04947,3279.3,3276.7,3.05179]
[1720034631794,0.52833481,3277.5,3277.2,3.05136]
[1720034632103,0.52833481,3277.4,3276.1,3.05238]
[1720034632277,0.52833481,3277.3,3276.7,3.0518]
[1720034632478,0.52833481,3277.2,3276.7,3.0518]
[1720034632678,3.05083,3277.8,3276.7,3.0518]
[1720034632917,0.52845462,3277.7,3276.7,3.0518]
[1720034633116,6.04995,3278.8,3276.7,3.0518]
[1720034633117,0.52845462,3277.6,3277.0,3.0515]
[1720034633333,0.52845462,3277.5,3276.7,3.05181]
[1720034633479,3.05069,3278.0,3276.7,3.05181]
[1720034633480,0.52845462,3277.4,3276.7,3.05181]
[1720034633679,0.52845462,3277.3,3276.8,0.55]
[1720034633875,0.52845462,3277.2,3276.8,0.55]
[1720034634079,3.05088,3277.8,3276.6,0.55]
[1720034634080,0.52845462,3277.1,3276.6,0.55]
[1720034634328,0.52845462,3277.0,3276.2,3.05229]
[1720034634623,1.43577815,3276.3,3276.2,6.1046]
[1720034634918,1.43577815,3276.6,3276.5,3.05203]
[1720034635222,0.52841682,3276.6,3276.5,3.05203]
[1720034635584,0.52841682,3276.6,3276.5,3.60203]
[1720034635783,0.52841571,3277.9,3276.6,3.0519]
[1720034636024,0.52841571,3277.8,3276.7,0.55]
[1720034636178,0.52842694,3277.7,3276.7,0.55]
[1720034636382,0.52842694,3277.6,3276.7,0.55]
[1720034636613,0.52842694,3277.5,3276.7,0.55]
[1720034636929,0.52842694,3277.4,3276.7,0.55]
[1720034637129,0.52842694,3277.3,3276.7,0.55]
[1720034637442,0.52842694,3277.2,3276.7,0.55]
[1720034637603,0.52842694,3277.1,3276.7,0.55]
[1720034637789,0.52842694,3277.0,3276.7,0.55]
[1720034637992,0.52842694,3276.9,3276.7,0.55]
[1720034638227,0.52842694,3276.8,3276.7,0.55]
[1720034638748,3.57940694,3277.7,3276.7,0.55]